fUST/lending_fUST_20251129
["ID","MTS","AMOUNT","RATE_DAILY","PERIOD"]
[395032122,1764353441595,-500.0,0.00016438,2]
[395032123,1764353441604,-500.0,0.00016438,2]
[395032124,1764353441613,-1200.36,0.00016438,2]
[395032125,1764353441622,-500.0,0.00016438,2]
[395032126,1764353441631,-500.0,0.00016438,2]
[395032127,1764353441640,-500.0,0.00016438,2]
[395032128,1764353441649,-1093.31,0.00016438,2]
[395032129,1764353441658,-503.40630707,0.00016438,2]
[395032130,1764353441667,-899.87,0.00016438,2]
[395032131,1764353441676,-510.65314756,0.00016438,2]
[395032132,1764353441685,-1020.67,0.00016438,2]
[395032133,1764353441694,-500.0,0.00016438,2]
[395032134,1764353441703,-500.0,0.00016438,2]
[395032135,1764353441712,-500.0,0.00016438,2]
[395032136,1764353441721,-760.97,0.00016438,2]
[395032137,1764353441731,-500.0,0.00016438,2]
[395032138,1764353441741,-1053.11,0.00016438,2]
[395032139,1764353441750,-153.53577715,0.00016438,2]
[395032140,1764353441760,-833.94,0.00016438,2]
[395032141,1764353441773,-775.86,0.00016438,2]
[395032142,1764353441782,-500.0,0.00016438,2]
[395032143,1764353441792,-500.0,0.00016438,2]
[395032144,1764353441803,-500.0,0.00016438,2]
[395032145,1764353441812,-500.0,0.00016438,2]
[395032146,1764353441821,-294.9014912,0.00016438,2]
[395032147,1764353441830,-501.19680907,0.00016438,2]
[395032148,1764353441839,-500.0,0.00016438,2]
[395032149,1764353441851,-500.0,0.00016438,2]
[395032150,1764353441861,-500.0,0.00016438,2]
[395032151,1764353441870,-752.64,0.00016438,2]
[395032152,1764353441880,-500.0,0.00016438,2]
[395032153,1764353441889,-500.0,0.00016438,2]
[395032154,1764353441898,-727.52,0.00016438,2]
[395032155,1764353441907,-500.0,0.00016438,2]
[395032156,1764353441916,-500.0,0.00016438,2]
[395032157,1764353441926,-568.68926983,0.00016438,2]
[395032158,1764353441935,-500.33820009,0.00016438,2]
[395032159,1764353441944,-931.66,0.00016438,2]
[395032160,1764353441954,-902.75,0.00016438,2]
[395032161,1764353441963,-791.35,0.00016438,2]
[395032162,1764353441972,-527.66,0.00016438,2]
[395032163,1764353441983,-500.0,0.00016438,2]
[395032164,1764353441992,-1579.61,0.00016438,2]
[395032165,1764353442002,-4598.1,0.00016438,2]
[395032166,1764353442011,-500.0,0.00016438,2]
[395032167,1764353442022,-1186.44,0.00016438,2]
[395032168,1764353442031,-500.0,0.00016438,2]
[395032169,1764353442040,-500.0,0.00016438,2]
[395032170,1764353442050,-549.33942549,0.00016438,2]
[395032171,1764353442059,-500.0,0.00016438,2]
[395032172,1764353442068,-500.0,0.00016438,2]
[395032173,1764353442078,-500.0,0.00016438,2]
[395032174,1764353442088,-500.0,0.00016438,2]
[395032175,1764353442097,-500.0,0.00016438,2]
[395032176,1764353442107,-1466.1,0.00016438,2]
[395032177,1764353442116,-500.0,0.00016438,2]
[395032178,1764353442126,-500.0,0.00016438,2]
[395032179,1764353442135,-638.31762501,0.00016438,2]
[395032180,1764353442144,-500.0,0.00016438,2]
[395032181,1764353442154,-500.0,0.00016438,2]
[395032182,1764353442163,-500.0,0.00016438,2]
[395032183,1764353442172,-500.0,0.00016438,2]
[395032184,1764353442181,-500.0,0.00016438,2]
[395032185,1764353442191,-683.96,0.00016438,2]
[395032186,1764353442200,-676.46,0.00016438,2]
[395032187,1764353442209,-500.0,0.00016438,2]
[395032188,1764353442218,-500.0,0.00016438,2]
[395032189,1764353442229,-509.91224246,0.00016438,2]
[395032190,1764353442238,-559.67,0.00016438,2]
[395032191,1764353442248,-541.46,0.00016438,2]
[395032192,1764353442257,-500.0,0.00016438,2]
[395032193,1764353442267,-500.0,0.00016438,2]
[395032194,1764353442276,-500.0,0.00016438,2]
[395032195,1764353442285,-504.93155147,0.00016438,2]
[395032196,1764353442294,-500.0,0.00016438,2]
[395032197,1764353442304,-673.43,0.00016438,2]
[395032198,1764353442313,-550.43,0.00016438,2]
[395032199,1764353442322,-500.0,0.00016438,2]
[395032200,1764353442331,-500.0,0.00016438,2]
[395032201,1764353442340,-801.68,0.00016438,2]
[395032202,1764353442350,-599.1411419,0.00016438,2]
[395032203,1764353442359,-500.0,0.00016438,2]
[395032204,1764353442369,-902.97,0.00016438,2]
[395032205,1764353442378,-500.2577098,0.00016438,2]
[395032206,1764353442388,-706.86,0.00016438,2]
[395032207,1764353442398,-500.0,0.00016438,2]
[395032208,1764353442408,-500.0,0.00016438,2]
[395032209,1764353442418,-552.47,0.00016438,2]
[395032210,1764353442428,-502.37407616,0.00016438,2]
[395032211,1764353442438,-1252.18226368,0.00016438,2]
[395032212,1764353442466,-686.23773632,0.00016438,2]
[395032213,1764353442476,-500.0,0.00016438,2]
[395032215,1764353442485,-500.0,0.00016438,2]
[395032216,1764353442494,-500.0,0.00016438,2]
[395032217,1764353442503,-502.04385141,0.00016438,2]
[395032219,1764353442513,-502.68604269,0.00016438,2]
[395032221,1764353442523,-502.93869917,0.00016438,2]
[395032223,1764353442532,-500.0,0.00016438,2]
[395032225,1764353442541,-500.0,0.00016438,2]
[395032228,1764353442550,-500.25352972,0.00016438,2]
[395032229,1764353442560,-500.0,0.00016438,2]
[395032232,1764353442570,-500.0,0.00016438,2]
[395032233,1764353442579,-480.23460073,0.00016438,2]
[395032235,1764353442588,-500.0,0.00016438,2]
[395032237,1764353442597,-500.0,0.00016438,2]
[395032239,1764353442606,-2839.9,0.00016438,2]
[395032240,1764353442616,-500.5915989,0.00016438,2]
[395032242,1764353442625,-500.0,0.00016438,2]
[395032243,1764353442634,-1664.34,0.00016438,2]
[395032244,1764353442643,-500.0,0.00016438,2]
[395032245,1764353442652,-479.68709206,0.00016438,2]
[395032246,1764353442662,-738.03,0.00016438,2]
[395032247,1764353442671,-500.0,0.00016438,2]
[395032250,1764353442680,-500.0,0.00016438,2]
[395032252,1764353442689,-548.35,0.00016438,2]
[395032254,1764353442698,-500.0,0.00016438,2]
[395032256,1764353442707,-500.0,0.00016438,2]
[395032257,1764353442716,-502.33140587,0.00016438,2]
[395032258,1764353442726,-635.9,0.00016438,2]
[395032259,1764353442736,-523.47766111,0.00016438,2]
[395032260,1764353442745,-500.0,0.00016438,2]
[395032261,1764353442754,-2432.81,0.00016438,2]
[395032263,1764353442764,-500.0,0.00016438,2]
[395032264,1764353442774,-500.0,0.00016438,2]
[395032265,1764353442785,-642.62,0.00016438,2]
[395032266,1764353442798,-1050.52,0.00016438,2]
[395032267,1764353442807,-505.24451662,0.00016438,2]
[395032268,1764353442818,-500.0,0.00016438,2]
[395032269,1764353442827,-500.0,0.00016438,2]
[395032270,1764353442836,-500.0,0.00016438,2]
[395032271,1764353442845,-500.0,0.00016438,2]
[395032272,1764353442857,-500.0,0.00016438,2]
[395032273,1764353442866,-500.0,0.00016438,2]
[395032274,1764353442875,-500.0,0.00016438,2]
[395032275,1764353442885,-500.0,0.00016438,2]
[395032276,1764353442894,-500.0,0.00016438,2]
[395032277,1764353442903,-502.14482775,0.00016438,2]
[395032278,1764353442913,-520.50475033,0.00016438,2]
[395032279,1764353442922,-500.0,0.00016438,2]
[395032280,1764353442932,-1639.1,0.00016438,2]
[395032281,1764353442941,-525.94878921,0.00016438,2]
[395032282,1764353442950,-500.0,0.00016438,2]
[395032283,1764353442960,-500.0,0.00016438,2]
[395032284,1764353442969,-664.19,0.00016438,2]
[395032285,1764353442978,-500.0,0.00016438,2]
[395032286,1764353442987,-529.37,0.00016438,2]
[395032287,1764353443001,-500.0,0.00016438,2]
[395032288,1764353443011,-1652.23,0.00016438,2]
[395032289,1764353443021,-669.48,0.00016438,2]
[395032290,1764353443030,-500.0,0.00016438,2]
[395032291,1764353443040,-500.0,0.00016438,2]
[395032292,1764353443050,-500.0,0.00016438,2]
[395032293,1764353443059,-500.0,0.00016438,2]
[395032294,1764353443069,-500.0,0.00016438,2]
[395032295,1764353443078,-859.96,0.00016438,2]
[395032296,1764353443088,-1000.15,0.00016438,2]
[395032297,1764353443098,-525.6120294,0.00016438,2]
[395032298,1764353443107,-500.0,0.00016438,2]
[395032299,1764353443117,-500.0,0.00016438,2]
[395032300,1764353443127,-401.61575484,0.00016438,2]
[395032301,1764353443137,-500.0,0.00016438,2]
[395032302,1764353443146,-501.85157155,0.00016438,2]
[395032303,1764353443156,-604.98,0.00016438,2]
[395032304,1764353443166,-502.31001546,0.00016438,2]
[395032305,1764353443175,-500.0,0.00016438,2]
[395032306,1764353443184,-500.12110129,0.00016438,2]
[395032307,1764353443194,-500.0,0.00016438,2]
[395032308,1764353443204,-500.0,0.00016438,2]
[395032309,1764353443213,-500.0,0.00016438,2]
[395032310,1764353443223,-500.0,0.00016438,2]
[395032311,1764353443233,-500.0,0.00016438,2]
[395032312,1764353443242,-2985.09,0.00016438,2]
[395032313,1764353443252,-500.0,0.00016438,2]
[395032314,1764353443261,-500.0,0.00016438,2]
[395032315,1764353443271,-500.0,0.00016438,2]
[395032317,1764353443280,-500.0,0.00016438,2]
[395032319,1764353443290,-500.0,0.00016438,2]
[395032321,1764353443299,-642.0,0.00016438,2]
[395032323,1764353443308,-500.0,0.00016438,2]
[395032324,1764353443318,-510.72828663,0.00016438,2]
[395032325,1764353443331,-749.15,0.00016438,2]
[395032326,1764353443340,-500.0,0.00016438,2]
[395032327,1764353443352,-586.11,0.00016438,2]
[395032328,1764353443362,-2386.27,0.00016438,2]
[395032329,1764353443372,-500.0,0.00016438,2]
[395032330,1764353443381,-500.0,0.00016438,2]
[395032331,1764353443391,-500.0,0.00016438,2]
[395032332,1764353443400,-533.36,0.00016438,2]
[395032333,1764353443410,-500.0,0.00016438,2]
[395032334,1764353443420,-500.0,0.00016438,2]
[395032335,1764353443429,-501.36,0.00016438,2]
[395032336,1764353443439,-500.0,0.00016438,2]
[395032337,1764353443448,-584.69345396,0.00016438,2]
[395032338,1764353443457,-500.0,0.00016438,2]
[395032339,1764353443466,-500.0,0.00016438,2]
[395032340,1764353443476,-500.0,0.00016438,2]
[395032341,1764353443486,-511.99730478,0.00016438,2]
[395032342,1764353443496,-552.61,0.00016438,2]
[395032343,1764353443505,-500.0,0.00016438,2]
[395032344,1764353443514,-500.0,0.00016438,2]
[395032345,1764353443524,-500.0,0.00016438,2]
[395032346,1764353443534,-860.97,0.00016438,2]
[395032347,1764353443543,-500.0,0.00016438,2]
[395032348,1764353443552,-1000.0,0.00016438,2]
[395032349,1764353443562,-2546.25,0.00016438,2]
[395032350,1764353443572,-606.15,0.00016438,2]
[395032351,1764353443582,-500.0,0.00016438,2]
[395032352,1764353443592,-515.28612076,0.00016438,2]
[395032353,1764353443602,-500.0,0.00016438,2]
[395032354,1764353443612,-500.0,0.00016438,2]
[395032355,1764353443622,-500.0,0.00016438,2]
[395032356,1764353443631,-500.0,0.00016438,2]
[395032357,1764353443640,-1621.81,0.00016438,2]
[395032358,1764353443650,-1683.89,0.00016438,2]
[395032359,1764353443659,-262.87168512,0.00016438,2]
[395032360,1764353443671,-500.0,0.00016438,2]
[395032361,1764353443680,-153.09512211,0.00016438,2]
[395032362,1764353443690,-500.0,0.00016438,2]
[395032363,1764353443699,-500.0,0.00016438,2]
[395032364,1764353443708,-500.0,0.00016438,2]
[395032365,1764353443718,-756.47,0.00016438,2]
[395032366,1764353443729,-984.55,0.00016438,2]
[395032367,1764353443738,-500.0,0.00016438,2]
[395032368,1764353443748,-500.0,0.00016438,2]
[395032369,1764353443758,-694.92,0.00016438,2]
[395032370,1764353443770,-746.1,0.00016438,2]
[395032371,1764353443785,-500.0,0.00016438,2]
[395032372,1764353443796,-947.39,0.00016438,2]
[395032373,1764353443807,-902.03,0.00016438,2]
[395032374,1764353443817,-409.42785629,0.00016438,2]
[395032375,1764353443826,-3191.43,0.00016438,2]
[395032376,1764353443836,-500.0,0.00016438,2]
[395032377,1764353443846,-711.42,0.00016438,2]
[395032378,1764353443857,-500.0,0.00016438,2]
[395032379,1764353443866,-572.41469437,0.00016438,2]
[395032380,1764353443876,-500.0,0.00016438,2]
[395032381,1764353443886,-826.87,0.00016438,2]
[395032382,1764353443895,-511.01075947,0.00016438,2]
[395032383,1764353443905,-500.0,0.00016438,2]
[395032384,1764353443915,-500.0,0.00016438,2]
[395032385,1764353443925,-500.0,0.00016438,2]
[395032386,1764353443934,-500.0,0.00016438,2]
[395032387,1764353443944,-500.0,0.00016438,2]
[395032388,1764353443955,-920.34,0.00016438,2]
[395032389,1764353443964,-501.72037831,0.00016438,2]
[395032390,1764353443974,-1392.58,0.00016438,2]
[395032391,1764353443984,-500.0,0.00016438,2]
[395032393,1764353443994,-5875.219193,0.00016438,2]
[395032395,1764353444004,-500.0,0.00016438,2]
[395032397,1764353444014,-500.0,0.00016438,2]
[395032399,1764353444023,-505.38161238,0.00016438,2]
[395032401,1764353444033,-500.0,0.00016438,2]
[395032403,1764353444043,-500.0,0.00016438,2]
[395032405,1764353444053,-552.15,0.00016438,2]
[395032407,1764353444062,-500.0,0.00016438,2]
[395032409,1764353444072,-500.0,0.00016438,2]
[395032411,1764353444082,-500.0,0.00016438,2]
[395032413,1764353444091,-3957.38,0.00016438,2]
[395032415,1764353444101,-500.0,0.00016438,2]
[395032417,1764353444110,-1261.51,0.00016438,2]
[395032419,1764353444120,-500.0,0.00016438,2]
[395032421,1764353444129,-879.22,0.00016438,2]
[395032423,1764353444139,-500.0,0.00016438,2]
[395032425,1764353444149,-1357.19,0.00016438,2]
[395032427,1764353444158,-500.0,0.00016438,2]
[395032429,1764353444168,-500.0,0.00016438,2]
[395032431,1764353444177,-502.37012621,0.00016438,2]
[395032433,1764353444187,-500.0,0.00016438,2]
[395032435,1764353444196,-4012.09,0.00016438,2]
[395032438,1764353444206,-500.0,0.00016438,2]
[395032440,1764353444217,-516.62871915,0.00016438,2]
[395032442,1764353444227,-4918.99,0.00016438,2]
[395032444,1764353444237,-18869.32,0.00016438,2]
[395032446,1764353444246,-509.41045977,0.00016438,2]
[395032448,1764353444256,-508.75506522,0.00016438,2]
[395032450,1764353444268,-500.0,0.00016438,2]
[395032452,1764353444278,-765.2,0.00016438,2]
[395032454,1764353444288,-500.0,0.00016438,2]
[395032456,1764353444297,-2411.18,0.00016438,2]
[395032458,1764353444307,-500.0,0.00016438,2]
[395032460,1764353444317,-243.2847845,0.00016438,2]
[395032464,1764353445037,-256.7152155,0.00016438,2]
[395032465,1764353445048,-500.0,0.00016438,2]
[395032466,1764353445057,-509.47892338,0.00016438,2]
[395032467,1764353445066,-509.30790492,0.00016438,2]
[395032468,1764353445075,-501.76805064,0.00016438,2]
[395032469,1764353445084,-1989.05,0.00016438,2]
[395032470,1764353445094,-500.0,0.00016438,2]
[395032471,1764353445103,-500.0,0.00016438,2]
[395032472,1764353445112,-524.54578571,0.00016438,2]
[395032473,1764353445121,-608.67,0.00016438,2]
[395032474,1764353445130,-500.0,0.00016438,2]
[395032475,1764353445139,-1680.54,0.00016438,2]
[395032476,1764353445149,-1071.36,0.00016438,2]
[395032477,1764353445158,-500.0,0.00016438,2]
[395032478,1764353445167,-514.58132288,0.00016438,2]
[395032479,1764353445176,-500.0,0.00016438,2]
[395032480,1764353445185,-500.0,0.00016438,2]
[395032481,1764353445194,-501.1963846,0.00016438,2]
[395032482,1764353445203,-1446.91,0.00016438,2]
[395032483,1764353445213,-823.96,0.00016438,2]
[395032484,1764353445222,-500.0,0.00016438,2]
[395032485,1764353445232,-500.0,0.00016438,2]
[395032486,1764353445241,-500.0,0.00016438,2]
[395032487,1764353445250,-518.72,0.00016438,2]
[395032488,1764353445259,-500.0,0.00016438,2]
[395032489,1764353445268,-1680.2,0.00016438,2]
[395032490,1764353445277,-213.672367,0.00016438,2]
[395032491,1764353445286,-2067.13,0.00016438,2]
[395032492,1764353445295,-500.0,0.00016438,2]
[395032493,1764353445305,-920.58,0.00016438,2]
[395032494,1764353445313,-500.0,0.00016438,2]
[395032495,1764353445324,-500.0,0.00016438,2]
[395032496,1764353445333,-500.0,0.00016438,2]
[395032497,1764353445342,-1555.51,0.00016438,2]
[395032498,1764353445351,-500.0,0.00016438,2]
[395032499,1764353445360,-594.87,0.00016438,2]
[395032500,1764353445370,-500.0,0.00016438,2]
[395032501,1764353445379,-500.0,0.00016438,2]
[395032502,1764353445388,-3431.94,0.00016438,2]
[395032503,1764353445397,-500.0,0.00016438,2]
[395032504,1764353445407,-500.0,0.00016438,2]
[395032505,1764353445416,-1807.28,0.00016438,2]
[395032506,1764353445426,-500.0,0.00016438,2]
[395032508,1764353445435,-932.56,0.00016438,2]
[395032509,1764353445445,-500.0,0.00016438,2]
[395032511,1764353445454,-500.0,0.00016438,2]
[395032512,1764353445463,-500.0,0.00016438,2]
[395032513,1764353445472,-457.20274946,0.00016438,2]
[395032514,1764353445481,-573.14,0.00016438,2]
[395032515,1764353445491,-500.0,0.00016438,2]
[395032516,1764353445500,-930.37,0.00016438,2]
[395032517,1764353445509,-500.0,0.00016438,2]
[395032518,1764353445519,-855.26,0.00016438,2]
[395032520,1764353445529,-500.0,0.00016438,2]
[395032522,1764353445539,-514.29058136,0.00016438,2]
[395032523,1764353445548,-500.0,0.00016438,2]
[395032524,1764353445558,-540.11444224,0.00016438,2]
[395032525,1764353445567,-500.0,0.00016438,2]
[395032526,1764353445576,-1563.21,0.00016438,2]
[395032527,1764353445585,-500.0,0.00016438,2]
[395032528,1764353445595,-500.0,0.00016438,2]
[395032529,1764353445604,-965.35,0.00016438,2]
[395032530,1764353445614,-500.0,0.00016438,2]
[395032531,1764353445623,-500.0,0.00016438,2]
[395032532,1764353445633,-501.40135133,0.00016438,2]
[395032533,1764353445642,-500.0,0.00016438,2]
[395032534,1764353445652,-521.23,0.00016438,2]
[395032535,1764353445661,-3700.34,0.00016438,2]
[395032536,1764353445670,-747.96,0.00016438,2]
[395032537,1764353445680,-2020.29,0.00016438,2]
[395032538,1764353445688,-1183.41,0.00016438,2]
[395032539,1764353445698,-847.67,0.00016438,2]
[395032540,1764353445707,-500.0,0.00016438,2]
[395032541,1764353445716,-568.39,0.00016438,2]
[395032543,1764353445726,-615.19,0.00016438,2]
[395032544,1764353445736,-500.0,0.00016438,2]
[395032545,1764353445745,-5484.87,0.00016438,2]
[395032546,1764353445755,-500.0,0.00016438,2]
[395032547,1764353445767,-572.84101642,0.00016438,2]
[395032548,1764353445780,-520.57,0.00016438,2]
[395032549,1764353445789,-1135.53,0.00016438,2]
[395032550,1764353445800,-517.92848488,0.00016438,2]
[395032551,1764353445810,-3739.59,0.00016438,2]
[395032552,1764353445819,-154.47409263,0.00016438,2]
[395032556,1764353446476,-345.52590737,0.00016438,2]
[395032557,1764353446486,-500.0,0.00016438,2]
[395032558,1764353446496,-500.0,0.00016438,2]
[395032559,1764353446504,-500.0,0.00016438,2]
[395032560,1764353446513,-526.84,0.00016438,2]
[395032561,1764353446522,-500.0,0.00016438,2]
[395032562,1764353446531,-166.3911791,0.00016438,2]
[395032563,1764353446541,-500.0,0.00016438,2]
[395032564,1764353446550,-500.0,0.00016438,2]
[395032565,1764353446559,-1427.28,0.00016438,2]
[395032566,1764353446567,-500.69258079,0.00016438,2]
[395032567,1764353446576,-852.07,0.00016438,2]
[395032568,1764353446585,-1832.77,0.00016438,2]
[395032569,1764353446595,-878.65,0.00016438,2]
[395032570,1764353446603,-501.12647776,0.00016438,2]
[395032571,1764353446614,-508.68374498,0.00016438,2]
[395032572,1764353446623,-1256.02,0.00016438,2]
[395032573,1764353446632,-2856.25,0.00016438,2]
[395032574,1764353446641,-3501.51,0.00016438,2]
[395032575,1764353446650,-559.04763715,0.00016438,2]
[395032576,1764353446661,-2037.98,0.00016438,2]
[395032577,1764353446670,-500.0,0.00016438,2]
[395032578,1764353446679,-539.14,0.00016438,2]
[395032579,1764353446688,-1284.93,0.00016438,2]
[395032580,1764353446697,-500.0,0.00016438,2]
[395032581,1764353446706,-500.0,0.00016438,2]
[395032582,1764353446715,-500.0,0.00016438,2]
[395032583,1764353446725,-3158.91,0.00016438,2]
[395032584,1764353446734,-500.0,0.00016438,2]
[395032585,1764353446744,-500.0,0.00016438,2]
[395032586,1764353446752,-1134.02,0.00016438,2]
[395032587,1764353446762,-500.0,0.00016438,2]
[395032588,1764353446775,-1225.8,0.00016438,2]
[395032589,1764353446784,-500.0,0.00016438,2]
[395032590,1764353446793,-208.83247285,0.00016438,2]
[395032591,1764353446807,-455.50752715,0.00016438,2]
[395032592,1764353446816,-3477.99,0.00016438,2]
[395032593,1764353446826,-154.03039175,0.00016438,2]
[395032594,1764353446835,-4335.68,0.00016438,2]
[395032595,1764353446846,-5059.68827264,0.00016438,2]
[395032596,1764353447486,-83.41172736,0.00016438,2]
[395032597,1764353447495,-500.0,0.00016438,2]
[395032598,1764353447504,-500.0,0.00016438,2]
[395032599,1764353447513,-500.0,0.00016438,2]
[395032600,1764353447522,-519.78775634,0.00016438,2]
[395032601,1764353447531,-1034.67,0.00016438,2]
[395032602,1764353447540,-904.4605163,0.00016438,2]
[395032603,1764353447551,-3804.6694837,0.00016438,2]
[395032604,1764353447560,-524.79,0.00016438,2]
[395032605,1764353447570,-500.0,0.00016438,2]
[395032606,1764353447579,-1314.05,0.00016438,2]
[395032607,1764353447588,-639.57,0.00016438,2]
[395032608,1764353447597,-835.47,0.00016438,2]
[395032609,1764353447607,-1275.54,0.00016438,2]
[395032610,1764353447616,-500.0,0.00016438,2]
[395032611,1764353447625,-500.0,0.00016438,2]
[395032612,1764353447634,-5285.04,0.00016438,2]
[395032613,1764353447644,-1135.49,0.00016438,2]
[395032614,1764353447655,-500.0,0.00016438,2]
[395032615,1764353447664,-864.25,0.00016438,2]
[395032616,1764353447673,-500.0,0.00016438,2]
[395032617,1764353447682,-500.0,0.00016438,2]
[395032618,1764353447692,-1736.52,0.00016438,2]
[395032619,1764353447701,-1417.16,0.00016438,2]
[395032620,1764353447714,-500.0,0.00016438,2]
[395032621,1764353447723,-702.87,0.00016438,2]
[395032622,1764353447733,-2840.17,0.00016438,2]
[395032623,1764353447742,-500.0,0.00016438,2]
[395032624,1764353447751,-500.0,0.00016438,2]
[395032625,1764353447761,-798.83,0.00016438,2]
[395032626,1764353447774,-514.16,0.00016438,2]
[395032627,1764353447783,-500.0,0.00016438,2]
[395032628,1764353447793,-1765.75,0.00016438,2]
[395032629,1764353447803,-500.0,0.00016438,2]
[395032630,1764353447812,-646.13,0.00016438,2]
[395032631,1764353447821,-826.87,0.00016438,2]
[395032632,1764353447830,-12340.17,0.00016438,2]
[395032633,1764353447840,-446.12553976,0.00016438,2]
[395032634,1764353447851,-360.88584312,0.00016438,2]
[395032635,1764353447860,-500.0,0.00016438,2]
[395032636,1764353447869,-500.0,0.00016438,2]
[395032637,1764353447879,-500.0,0.00016438,2]
[395032638,1764353447888,-636.38,0.00016438,2]
[395032639,1764353447898,-502.80303111,0.00016438,2]
[395032640,1764353447907,-3597.68,0.00016438,2]
[395032641,1764353447916,-500.0,0.00016438,2]
[395032642,1764353447926,-2417.09,0.00016438,2]
[395032643,1764353447935,-500.0,0.00016438,2]
[395032644,1764353447945,-763.58,0.00016438,2]
[395032645,1764353447954,-500.0,0.00016438,2]
[395032646,1764353447963,-500.0,0.00016438,2]
[395032647,1764353447972,-4764.77,0.00016438,2]
[395032648,1764353447983,-10615.91,0.00016438,2]
[395032649,1764353447992,-2710.86,0.00016438,2]
[395032650,1764353448002,-500.0,0.00016438,2]
[395032651,1764353448235,-732.68,0.00016438,2]
[395032652,1764353448245,-500.0,0.00016438,2]
[395032653,1764353448255,-500.0,0.00016438,2]
[395032654,1764353448264,-538.04,0.00016438,2]
[395032655,1764353448273,-500.0,0.00016438,2]
[395032656,1764353448282,-1764.17,0.00016438,2]
[395032657,1764353448291,-500.0,0.00016438,2]
[395032658,1764353448300,-4599.65,0.00016438,2]
[395032659,1764353448310,-3827.55,0.00016438,2]
[395032660,1764353448319,-622.24589988,0.00016438,2]
[395032661,1764353448329,-789.48,0.00016438,2]
[395032662,1764353448338,-767.24,0.00016438,2]
[395032663,1764353448347,-3774.15,0.00016438,2]
[395032664,1764353448356,-500.75529809,0.00016438,2]
[395032665,1764353448366,-573.89,0.00016438,2]
[395032666,1764353448375,-500.0,0.00016438,2]
[395032667,1764353448385,-500.0,0.00016438,2]
[395032668,1764353448394,-9540.78,0.00016438,2]
[395032669,1764353448403,-500.0,0.00016438,2]
[395032670,1764353448412,-514.76502245,0.00016438,2]
[395032671,1764353448421,-3943.11,0.00016438,2]
[395032672,1764353448431,-500.0,0.00016438,2]
[395032673,1764353448440,-500.0,0.00016438,2]
[395032674,1764353448449,-500.0,0.00016438,2]
[395032675,1764353448459,-2358.98,0.00016438,2]
[395032676,1764353448469,-572.8,0.00016438,2]
[395032677,1764353448478,-606.23,0.00016438,2]
[395032678,1764353448490,-500.0,0.00016438,2]
[395032679,1764353448499,-1120.25,0.00016438,2]
[395032680,1764353448508,-1314.65,0.00016438,2]
[395032681,1764353448517,-503.78610686,0.00016438,2]
[395032682,1764353448526,-500.0,0.00016438,2]
[395032683,1764353448535,-271.96126638,0.00016438,2]
[395032684,1764353448545,-503.48252328,0.00016438,2]
[395032685,1764353448554,-500.0,0.00016438,2]
[395032686,1764353448563,-1109.54,0.00016438,2]
[395032687,1764353448572,-500.0,0.00016438,2]
[395032688,1764353448581,-500.0,0.00016438,2]
[395032689,1764353448590,-500.0,0.00016438,2]
[395032690,1764353448599,-500.0,0.00016438,2]